{"text_format":"3","workbook":"xlsx","n_sheets":3,"sheets":["Regler","Vind","Drage"],"not_rendered":{"charts":2,"defined_names":1},"read":"whole","date_system":"1900"}

{"sheet":"Regler","index":0,"n_rows":112,"n_cols":7,"rows_kept":112,"merged":[[1,2,1,3],[1,4,1,5],[25,1,25,6],[27,1,27,6],[29,1,29,6],[31,1,31,6]]}
["POINT"]
[null,null,"2'er til 8'er",null,"Drager, Vinde, 1'er, 9'er"]
[null,null,"Åben","Lukket","Åben","Lukket"]
["PONG (3 ens)",null,2,{"$f":"C4*2","v":4},{"$f":"D4","v":4},{"$f":"E4*2","v":8}]
["KONG (4 ens)",null,{"$f":"C4*4","v":8},{"$f":"C5*2","v":16},{"$f":"D5","v":16},{"$f":"E5*2","v":32}]
[]
["Hver bonus brik",{"$nulls":4},4]
["Par i Drager, egen vind eller rundes vind",{"$nulls":4},2]
["I en dragespil (3 spiller med blind mur)"]
["Par i vind, egen drage eller rundes drage",{"$nulls":4},2]
[]
["For Mah-Jong hånd alene"]
["For Mah-Jong hånd alene",{"$nulls":4},10]
["Trække den sidste brik fra muren",{"$nulls":4},2]
["Eneste mulig slutbrik",{"$nulls":4},2]
["Fiske øje",null,"(stor brik)",null,null,4]
[null,null,"(lille brik)",null,null,2]
[]
["I et dragespil er rækkefølgen således:"]
["1)","Red","Rød","Blomst og Årstid 1",null,"Spring","Plum"]
["2)","White","Hvid","Blomst og Årstid 2",null,"Summer","Orchid"]
["3)","Green","Grøn","Blomst og Årstid 3",null,"Autumn","Chrysanthemum"]
["4)","Blind Wall","Blind Mur","Blomst og Årstid 4",null,"Winter","Bamboo"]
["STRAFPOINT"]
["Falsk Mah-Jong Råb"]
[null,"Har en råbt Mah-Jong, og vedkommende ikke har Mah-Jong, så skal spilleren tage brikkende op igen, og spille videre. Har en anden dog dækket sine brikker op, så afsluttes spillet, og den spiller, der til uret har erklæret Mah-Jong betaler 300 points til hver (Øst reglen gælder stadigvæk). ved dobbelt falsk Mah-Jong råb 150 point. Trippel falsk Mah-Jong råb 100 point straf."]
["Falsk aflæg råb"]
[null,"Aflægger man ikke den brik man benævner, så sker der i første omgang ikke noget, hvis ingen kan bruge den opråbte brik. Melder en dog på den opråbte brik, så får vedkommende 50 point fra opråberen."]
["Kort hånd"]
[null,"En kort hånd kan ske ved, at man har glemt at trække en erstatningsbrik for en bonusbrik eller en kong, ja selv hvis man spiller en brik uden at have trukket en. Derved har spilleren kun 12 eller mindre brikker på hånden. Spilleren kan ikke melde Mah-Jong, men dog stadigvæk score point."]
["Lang hånd"]
[null,"En lang hånd opstår, hvis man tager en brik, når det ikke er ens tur, og man bliver opdaget før næste spiller trækker. En lang hånd kan ikke score point."]
[]
["DOBLING (116-117)"]
[]
["For alle deltager (116):"]
["a)","Egen Blomst & egen Årstid",{"$nulls":3},1]
["b)","Et sæt af Blomster",{"$nulls":3},1]
["c)","Et sæt af Årstider",{"$nulls":3},1]
["d)","Et sæt af Drager (Pong el. Kong)",{"$nulls":3},1]
["e)","Et sæt af Egen Vind (Pong el. Kong)",{"$nulls":3},1]
["f)","Et sæt af Rundens Vind (Pong el. Kong)",{"$nulls":3},1]
["g)","Little Three Dragons",{"$nulls":3},"1 ekstra","(2 sæt og 1 par i drager)"]
["h)","Big Three Dragons",{"$nulls":3},"2 ekstra","(3 sæt i drager)"]
["i)","Little Four Joys",{"$nulls":3},"1 ekstra","(3 sæt og 1 par i vinde)"]
["j)","Big Four Joys",{"$nulls":3},"2 ekstra","(4 sæt vinde)"]
["k)","3 Lukkede Pong",{"$nulls":3},1]
[]
["For alle deltager i et dragespil erstattes (116):"]
["d)","Et sæt af Vinde (Pong el. Kong)",{"$nulls":3},1]
["e)","Et sæt af Egen Drage (Pong el. Kong)",{"$nulls":3},1]
["f)","Et sæt af Rundens Drage (Pong el. Kong)",{"$nulls":3},1]
[]
["Kun for Mah-Jong hånden (117):"]
["a)","No Score",{"$nulls":3},1]
["b)","No Sequences (Birds singing in harmony)",{"$nulls":3},1,"(Ingen Chow)"]
["c)","All Concealed",{"$nulls":3},1,"(Alt skjult)"]
["d)","One Suit",{"$nulls":3},1,"(Kun en farve & Ædlebrikker)"]
["e)","Clear Suit",{"$nulls":3},3,"(Kun en farve)"]
["f)","All Major Tiles",{"$nulls":3},1,"(Kun store brikker)"]
["g)","All Honours",{"$nulls":3},2,"(Kun Ædlebrikker)"]
["h)","Winning on the Road",{"$nulls":3},1,"Mah-Jong på brik fra den døde mur"]
["i)","Winning from the bottom of the sea",{"$nulls":3},1,"Mah-Jong på den alle sidste brik i den levende mur"]
["j)","Catching the fish from the bottom of the sea",{"$nulls":3},1,"Mah-Jong på den sidste afspil efter den sidste brik i den levende mur"]
["k)","Robbing a Kong",{"$nulls":3},1]
["l)","Completing an Origina Call",{"$nulls":3},1]
[]
[null,"SPECIAL HANDS (122)"]
["a)","Heaven's Blessing"]
[null,"     Hvis Øst kan melde Mah-Jong på de udleveret brikker"]
["b)","Earth's Blessing"]
[null,"     Hvis Syd, Vest eller Nord kan \"Calling\" med de udleveret brikker, og melder Mah-Jong"]
[null,"     på den første udkastet brik fra Øst"]
["c)","Gathering Plum Blossom from the Roof"]
[null,"     Gå Mah-Jong ved at trække Cirkel 5 fra den døde mur"]
["d)","Cathing the Moon from the Bottom of the Sea"]
[null,"     Gå Mah-Jong ved at trække Cirkel 1 som den sidste brik fra den levende mur"]
["e)","Scrathing a Carrying Pole"]
[null,"     Melde Mah-Jong ved at røve en kong på Bambus 2"]
["f)","Kong upon Kong (Twofold Fortune)"]
[null,"     Først skal man score en kong. Den brik man trækker fra den døde mur score man endnu en"]
[null,"     kong, og den næste brik fra den døde mur melder man Mah-Jong"]
["g)","Fourfold Plenty"]
[null,"     Fire Konger og et par"]
["h)","Buried Treasure"]
[null,"     Skjul Mah-Jong uden Chow. Den sidste brik skal trækkes selv. En Åben Kong tælles med"]
[null,"     som \"skult\". Dog ikke for en tidligere åben pong."]
["i)","The Three Great Scholars"]
[null,"     Tre sæt drager, en kong el. pong samt et par"]
["j)","Four Blessing Hovering o'er the Door (Four Joys in Full)"]
[null,"     Alle 4 sæt vinde + et par"]
["k)","All Symbols"]
[null,"     Kun ædlebrikker"]
["l)","Heads and Tails"]
[null,"     Sæt og par bestående af udelukkende 1'er og 9'er"]
["m)","The Imperial Jade"]
[null,"     Sæt og par bestående af \"grønne\" brikker. Bambus 2,3,4,6,8 samt grøn Drage"]
["n)","Nine Sacred Lamps of Lotus (Nine United Sons)"]
[null,"     Alle i samme farve. Pong/Kong i 1 og 9, en brik hver fra 2 til 8 samt et afslutende ekstra brik."]
[null,"     Alle Concealed"]
["o)","The Wriggling Snake"]
[null,"     Alle i samme farve. Pong/Kong i 1 og 9 samt i en af følgende kombinationer\n    \n"]
[null,"     *  Par i 2, chow 3-4-5, chow 6-7-8"]
[null,"     *  Par i 5, chow 2-3-4, chow 6-7-8"]
[null,"     *  Par i 8, chow 2-3-4, chow 5-6-7"]
["p)","Concealed Clear Suit"]
[null,"     Rent farvespil. Skjult"]
["q)","The Thirteen Unique Wonders"]
[null,"     En brik af hver Store brikker + en ekstra af de store brikker"]
["r)","East's Thirteenth Consecutive Mah-Jong"]
[null,"     Scores ved at melde Mah-Jong 12 gange i træk som Øst. Derefter går Øst videre"]
[null,"Limited = 1000 (118-120)"]

{"sheet":"Vind","index":1,"n_rows":51,"n_cols":13,"rows_kept":51,"merged":[[1,1,1,4],[1,7,1,10]]}
[null,1,2,3,4,null,null,1,2,3,4]
[null,"Rundens points",{"$nulls":5},"Stilling"]
["Runde","Østspiller","Sydspiller","Vestspiller","Nordspiller","Øst","Vinder",{"$f":"B3","v":"Østspiller"},{"$f":"C3","v":"Sydspiller"},{"$f":"D3","v":"Vestspiller"},{"$f":"E3","v":"Nordspiller"},"Kontrol","Runde"]
[1,{"$nulls":4},1,null,{"$f":"IF($G4=\"\",H3,IF($G4=H$1,B4*IF($F4=H$1,6,4),IF(OR($F4=1,$F4=H$1),2,1)*(IF($G4=1,0,B4)-$B4)+IF(OR($F4=2,$F4=H$1),2,1)*(IF($G4=2,0,B4)-$C4)+IF(OR($F4=3,$F4=H$1),2,1)*(IF($G4=3,0,B4)-$D4)+IF(OR($F4=4,$F4=H$1),2,1)*(IF($G4=4,0,B4)-$E4)))","v":"Østspiller"},{"$f":"IF($G4=\"\",I3,IF($G4=I$1,C4*IF($F4=I$1,6,4),IF(OR($F4=1,$F4=I$1),2,1)*(IF($G4=1,0,C4)-$B4)+IF(OR($F4=2,$F4=I$1),2,1)*(IF($G4=2,0,C4)-$C4)+IF(OR($F4=3,$F4=I$1),2,1)*(IF($G4=3,0,C4)-$D4)+IF(OR($F4=4,$F4=I$1),2,1)*(IF($G4=4,0,C4)-$E4))+I3)","v":"Sydspiller"},{"$f":"IF($G4=\"\",J3,IF($G4=J$1,D4*IF($F4=J$1,6,4),IF(OR($F4=1,$F4=J$1),2,1)*(IF($G4=1,0,D4)-$B4)+IF(OR($F4=2,$F4=J$1),2,1)*(IF($G4=2,0,D4)-$C4)+IF(OR($F4=3,$F4=J$1),2,1)*(IF($G4=3,0,D4)-$D4)+IF(OR($F4=4,$F4=J$1),2,1)*(IF($G4=4,0,D4)-$E4))+J3)","v":"Vestspiller"},{"$f":"IF($G4=\"\",K3,IF($G4=K$1,E4*IF($F4=K$1,6,4),IF(OR($F4=1,$F4=K$1),2,1)*(IF($G4=1,0,E4)-$B4)+IF(OR($F4=2,$F4=K$1),2,1)*(IF($G4=2,0,E4)-$C4)+IF(OR($F4=3,$F4=K$1),2,1)*(IF($G4=3,0,E4)-$D4)+IF(OR($F4=4,$F4=K$1),2,1)*(IF($G4=4,0,E4)-$E4))+K3)","v":"Nordspiller"},{"$f":"SUM(H4:K4)","v":0},"Øst"]
[{"$f":"A4+1","v":2},{"$nulls":4},{"$f":"IF(F4=G4,F4,IF(F4=4,1,F4+1))","v":2},null,{"$f":"IF($G5=\"\",H4,IF($G5=H$1,B5*IF($F5=H$1,6,4),IF(OR($F5=1,$F5=H$1),2,1)*(IF($G5=1,0,B5)-$B5)+IF(OR($F5=2,$F5=H$1),2,1)*(IF($G5=2,0,B5)-$C5)+IF(OR($F5=3,$F5=H$1),2,1)*(IF($G5=3,0,B5)-$D5)+IF(OR($F5=4,$F5=H$1),2,1)*(IF($G5=4,0,B5)-$E5))+H4)","v":"Østspiller"},"Sydspiller","Vestspiller","Nordspiller",{"$f":"SUM(H5:K5)","v":0},{"$f":"IF(AND(F5=1,F4=4),IF(M4=\"Øst\",\"Syd\",IF(M4=\"Syd\",\"Vest\",\"Nord\")),M4)","v":"Øst"}]
[{"$f":"A5+1","v":3},{"$nulls":4},{"$f":"IF(F5=G5,F5,IF(F5=4,1,F5+1))","v":3},null,"Østspiller","Sydspiller","Vestspiller","Nordspiller",0,{"$f":"IF(AND(F6=1,F5=4),IF(M5=\"Øst\",\"Syd\",IF(M5=\"Syd\",\"Vest\",\"Nord\")),M5)","v":"Øst"}]
[4,{"$nulls":4},4,null,"Østspiller","Sydspiller","Vestspiller","Nordspiller",0,"Øst"]
[5,{"$nulls":4},1,null,"Østspiller","Sydspiller","Vestspiller","Nordspiller",0,"Syd"]
[6,{"$nulls":4},2,null,"Østspiller","Sydspiller","Vestspiller","Nordspiller",0,"Syd"]
[7,{"$nulls":4},3,null,"Østspiller","Sydspiller","Vestspiller","Nordspiller",0,"Syd"]
[8,{"$nulls":4},4,null,"Østspiller","Sydspiller","Vestspiller","Nordspiller",0,"Syd"]
[9,{"$nulls":4},1,null,"Østspiller","Sydspiller","Vestspiller","Nordspiller",0,"Vest"]
[10,{"$nulls":4},2,null,"Østspiller","Sydspiller","Vestspiller","Nordspiller",0,"Vest"]
[11,{"$nulls":4},3,null,"Østspiller","Sydspiller","Vestspiller","Nordspiller",0,"Vest"]
[12,{"$nulls":4},4,null,"Østspiller","Sydspiller","Vestspiller","Nordspiller",0,"Vest"]
[13,{"$nulls":4},1,null,"Østspiller","Sydspiller","Vestspiller","Nordspiller",0,"Nord"]
[14,{"$nulls":4},2,null,"Østspiller","Sydspiller","Vestspiller","Nordspiller",0,"Nord"]
[15,{"$nulls":4},3,null,"Østspiller","Sydspiller","Vestspiller","Nordspiller",0,"Nord"]
[16,{"$nulls":4},4,null,"Østspiller","Sydspiller","Vestspiller","Nordspiller",0,"Nord"]
[17,{"$nulls":4},1,null,"Østspiller","Sydspiller","Vestspiller","Nordspiller",0,"Nord"]
[18,{"$nulls":4},2,null,"Østspiller","Sydspiller","Vestspiller","Nordspiller",0,"Nord"]
[19,{"$nulls":4},3,null,"Østspiller","Sydspiller","Vestspiller","Nordspiller",0,"Nord"]
[20,{"$nulls":4},4,null,"Østspiller","Sydspiller","Vestspiller","Nordspiller",0,"Nord"]
[21,{"$nulls":4},1,null,{"$f":"IF($G24=\"\",H23,IF($G24=H$1,B24*IF($F24=H$1,6,4),IF(OR($F24=1,$F24=H$1),2,1)*(IF($G24=1,0,B24)-$B24)+IF(OR($F24=2,$F24=H$1),2,1)*(IF($G24=2,0,B24)-$C24)+IF(OR($F24=3,$F24=H$1),2,1)*(IF($G24=3,0,B24)-$D24)+IF(OR($F24=4,$F24=H$1),2,1)*(IF($G24=4,0,B24)-$E24))+H23)","v":"Østspiller"},{"$f":"IF($G24=\"\",I23,IF($G24=I$1,C24*IF($F24=I$1,6,4),IF(OR($F24=1,$F24=I$1),2,1)*(IF($G24=1,0,C24)-$B24)+IF(OR($F24=2,$F24=I$1),2,1)*(IF($G24=2,0,C24)-$C24)+IF(OR($F24=3,$F24=I$1),2,1)*(IF($G24=3,0,C24)-$D24)+IF(OR($F24=4,$F24=I$1),2,1)*(IF($G24=4,0,C24)-$E24))+I23)","v":"Sydspiller"},{"$f":"IF($G24=\"\",J23,IF($G24=J$1,D24*IF($F24=J$1,6,4),IF(OR($F24=1,$F24=J$1),2,1)*(IF($G24=1,0,D24)-$B24)+IF(OR($F24=2,$F24=J$1),2,1)*(IF($G24=2,0,D24)-$C24)+IF(OR($F24=3,$F24=J$1),2,1)*(IF($G24=3,0,D24)-$D24)+IF(OR($F24=4,$F24=J$1),2,1)*(IF($G24=4,0,D24)-$E24))+J23)","v":"Vestspiller"},{"$f":"IF($G24=\"\",K23,IF($G24=K$1,E24*IF($F24=K$1,6,4),IF(OR($F24=1,$F24=K$1),2,1)*(IF($G24=1,0,E24)-$B24)+IF(OR($F24=2,$F24=K$1),2,1)*(IF($G24=2,0,E24)-$C24)+IF(OR($F24=3,$F24=K$1),2,1)*(IF($G24=3,0,E24)-$D24)+IF(OR($F24=4,$F24=K$1),2,1)*(IF($G24=4,0,E24)-$E24))+K23)","v":"Nordspiller"},0,"Nord"]
[22,{"$nulls":4},2,null,"Østspiller","Sydspiller","Vestspiller","Nordspiller",0,"Nord"]
[23,{"$nulls":4},3,null,"Østspiller","Sydspiller","Vestspiller","Nordspiller",0,"Nord"]
[24,{"$nulls":4},4,null,"Østspiller","Sydspiller","Vestspiller","Nordspiller",0,"Nord"]
[25,{"$nulls":4},1,null,"Østspiller","Sydspiller","Vestspiller","Nordspiller",0,"Nord"]
[26,{"$nulls":4},2,null,"Østspiller","Sydspiller","Vestspiller","Nordspiller",0,"Nord"]
[27,{"$nulls":4},3,null,"Østspiller","Sydspiller","Vestspiller","Nordspiller",0,"Nord"]
[28,{"$nulls":4},4,null,"Østspiller","Sydspiller","Vestspiller","Nordspiller",0,"Nord"]
[29,{"$nulls":4},1,null,"Østspiller","Sydspiller","Vestspiller","Nordspiller",0,"Nord"]
[30,{"$nulls":4},2,null,"Østspiller","Sydspiller","Vestspiller","Nordspiller",0,"Nord"]
[{"$f":"A33+1","v":31},{"$nulls":4},3,null,"Østspiller","Sydspiller","Vestspiller","Nordspiller",{"$f":"SUM(H34:K34)","v":0},"Nord"]
[32,{"$nulls":4},4,null,"Østspiller","Sydspiller","Vestspiller","Nordspiller",0,"Nord"]
[33,{"$nulls":4},1,null,"Østspiller","Sydspiller","Vestspiller","Nordspiller",0,"Nord"]
[34,{"$nulls":4},2,null,"Østspiller","Sydspiller","Vestspiller","Nordspiller",0,"Nord"]
[35,{"$nulls":4},3,null,"Østspiller","Sydspiller","Vestspiller","Nordspiller",0,"Nord"]
[36,{"$nulls":4},4,null,"Østspiller","Sydspiller","Vestspiller","Nordspiller",0,"Nord"]
[37,{"$nulls":4},1,null,"Østspiller","Sydspiller","Vestspiller","Nordspiller",0,"Nord"]
[38,{"$nulls":4},2,null,"Østspiller","Sydspiller","Vestspiller","Nordspiller",0,"Nord"]
[39,{"$nulls":4},3,null,"Østspiller","Sydspiller","Vestspiller","Nordspiller",0,"Nord"]
[40,{"$nulls":4},4,null,"Østspiller","Sydspiller","Vestspiller","Nordspiller",0,"Nord"]
[41,{"$nulls":4},1,null,"Østspiller","Sydspiller","Vestspiller","Nordspiller",0,"Nord"]
[42,{"$nulls":4},2,null,"Østspiller","Sydspiller","Vestspiller","Nordspiller",0,"Nord"]
[43,{"$nulls":4},3,null,"Østspiller","Sydspiller","Vestspiller","Nordspiller",0,"Nord"]
[44,{"$nulls":4},4,null,"Østspiller","Sydspiller","Vestspiller","Nordspiller",0,"Nord"]
[45,{"$nulls":4},1,null,"Østspiller","Sydspiller","Vestspiller","Nordspiller",0,"Nord"]
[46,{"$nulls":4},2,null,"Østspiller","Sydspiller","Vestspiller","Nordspiller",0,"Nord"]
[47,{"$nulls":4},3,null,"Østspiller","Sydspiller","Vestspiller","Nordspiller",0,"Nord"]
[{"$f":"A50+1","v":48},{"$nulls":4},{"$f":"IF(F50=G50,F50,IF(F50=4,1,F50+1))","v":4},null,"Østspiller","Sydspiller","Vestspiller","Nordspiller",{"$f":"SUM(H51:K51)","v":0},"Nord"]

{"sheet":"Drage","index":2,"n_rows":51,"n_cols":11,"rows_kept":51,"merged":[[1,1,1,3],[1,6,1,8]]}
[null,1,2,3,null,null,1,2,3]
[null,"Rundens points",{"$nulls":4},"Stilling"]
["Runde","Rød Drage","Hvid Drage","Grøn Drage","Rød","Vinder",{"$f":"B3","v":"Rød Drage"},{"$f":"C3","v":"Hvid Drage"},{"$f":"D3","v":"Grøn Drage"},"Kontrol","Runde"]
[1,{"$nulls":3},1,null,{"$f":"IF($F4=\"\",G3,IF($F4=G$1,B4*IF($E4=G$1,4,3),IF(OR($E4=1,$E4=G$1),2,1)*(IF($F4=1,0,B4)-$B4)+IF(OR($E4=2,$E4=G$1),2,1)*(IF($F4=2,0,B4)-$C4)+IF(OR($E4=3,$E4=G$1),2,1)*(IF($F4=3,0,B4)-$D4)))","v":"Rød Drage"},{"$f":"IF($F4=\"\",H3,IF($F4=H$1,C4*IF($E4=H$1,4,3),IF(OR($E4=1,$E4=H$1),2,1)*(IF($F4=1,0,C4)-$B4)+IF(OR($E4=2,$E4=H$1),2,1)*(IF($F4=2,0,C4)-$C4)+IF(OR($E4=3,$E4=H$1),2,1)*(IF($F4=3,0,C4)-$D4)))","v":"Hvid Drage"},{"$f":"IF($F4=\"\",I3,IF($F4=I$1,D4*IF($E4=I$1,4,3),IF(OR($E4=1,$E4=I$1),2,1)*(IF($F4=1,0,D4)-$B4)+IF(OR($E4=2,$E4=I$1),2,1)*(IF($F4=2,0,D4)-$C4)+IF(OR($E4=3,$E4=I$1),2,1)*(IF($F4=3,0,D4)-$D4)))","v":"Grøn Drage"},{"$f":"SUM(G4:I4)","v":0},"Rød"]
[{"$f":"A4+1","v":2},{"$nulls":3},{"$f":"IF(E4=F4,E4,IF(E4=3,1,E4+1))","v":2},null,{"$f":"IF($F5=\"\",G4,IF($F5=G$1,B5*IF($E5=G$1,4,3),IF(OR($E5=1,$E5=G$1),2,1)*(IF($F5=1,0,B5)-$B5)+IF(OR($E5=2,$E5=G$1),2,1)*(IF($F5=2,0,B5)-$C5)+IF(OR($E5=3,$E5=G$1),2,1)*(IF($F5=3,0,B5)-$D5))+G4)","v":"Rød Drage"},{"$f":"IF($F5=\"\",H4,IF($F5=H$1,C5*IF($E5=H$1,4,3),IF(OR($E5=1,$E5=H$1),2,1)*(IF($F5=1,0,C5)-$B5)+IF(OR($E5=2,$E5=H$1),2,1)*(IF($F5=2,0,C5)-$C5)+IF(OR($E5=3,$E5=H$1),2,1)*(IF($F5=3,0,C5)-$D5))+H4)","v":"Hvid Drage"},{"$f":"IF($F5=\"\",I4,IF($F5=I$1,D5*IF($E5=I$1,4,3),IF(OR($E5=1,$E5=I$1),2,1)*(IF($F5=1,0,D5)-$B5)+IF(OR($E5=2,$E5=I$1),2,1)*(IF($F5=2,0,D5)-$C5)+IF(OR($E5=3,$E5=I$1),2,1)*(IF($F5=3,0,D5)-$D5))+I4)","v":"Grøn Drage"},0,{"$f":"IF(AND(E5=1,E4=3),IF(K4=\"Rød\",\"Hvid\",\"Grøn\"),K4)","v":"Rød"}]
[{"$f":"A5+1","v":3},{"$nulls":3},{"$f":"IF(E5=F5,E5,IF(E5=3,1,E5+1))","v":3},null,{"$f":"IF($F6=\"\",G5,IF($F6=G$1,B6*IF($E6=G$1,4,3),IF(OR($E6=1,$E6=G$1),2,1)*(IF($F6=1,0,B6)-$B6)+IF(OR($E6=2,$E6=G$1),2,1)*(IF($F6=2,0,B6)-$C6)+IF(OR($E6=3,$E6=G$1),2,1)*(IF($F6=3,0,B6)-$D6)))","v":"Rød Drage"},{"$f":"IF($F6=\"\",H5,IF($F6=H$1,C6*IF($E6=H$1,4,3),IF(OR($E6=1,$E6=H$1),2,1)*(IF($F6=1,0,C6)-$B6)+IF(OR($E6=2,$E6=H$1),2,1)*(IF($F6=2,0,C6)-$C6)+IF(OR($E6=3,$E6=H$1),2,1)*(IF($F6=3,0,C6)-$D6)))","v":"Hvid Drage"},{"$f":"IF($F6=\"\",I5,IF($F6=I$1,D6*IF($E6=I$1,4,3),IF(OR($E6=1,$E6=I$1),2,1)*(IF($F6=1,0,D6)-$B6)+IF(OR($E6=2,$E6=I$1),2,1)*(IF($F6=2,0,D6)-$C6)+IF(OR($E6=3,$E6=I$1),2,1)*(IF($F6=3,0,D6)-$D6)))","v":"Grøn Drage"},0,{"$f":"IF(AND(E6=1,E5=3),IF(K5=\"Rød\",\"Hvid\",\"Grøn\"),K5)","v":"Rød"}]
[4,{"$nulls":3},1,null,"Rød Drage","Hvid Drage","Grøn Drage",0,"Hvid"]
[5,{"$nulls":3},2,null,"Rød Drage","Hvid Drage","Grøn Drage",0,"Hvid"]
[6,{"$nulls":3},3,null,"Rød Drage","Hvid Drage","Grøn Drage",0,"Hvid"]
[7,{"$nulls":3},1,null,"Rød Drage","Hvid Drage","Grøn Drage",0,"Grøn"]
[8,{"$nulls":3},2,null,"Rød Drage","Hvid Drage","Grøn Drage",0,"Grøn"]
[9,{"$nulls":3},3,null,"Rød Drage","Hvid Drage","Grøn Drage",0,"Grøn"]
[10,{"$nulls":3},1,null,"Rød Drage","Hvid Drage","Grøn Drage",0,"Grøn"]
[11,{"$nulls":3},2,null,"Rød Drage","Hvid Drage","Grøn Drage",0,"Grøn"]
[12,{"$nulls":3},3,null,"Rød Drage","Hvid Drage","Grøn Drage",0,"Grøn"]
[13,{"$nulls":3},1,null,"Rød Drage","Hvid Drage","Grøn Drage",0,"Grøn"]
[14,{"$nulls":3},2,null,"Rød Drage","Hvid Drage","Grøn Drage",0,"Grøn"]
[15,{"$nulls":3},3,null,"Rød Drage","Hvid Drage","Grøn Drage",0,"Grøn"]
[16,{"$nulls":3},1,null,"Rød Drage","Hvid Drage","Grøn Drage",0,"Grøn"]
[17,{"$nulls":3},2,null,"Rød Drage","Hvid Drage","Grøn Drage",0,"Grøn"]
[18,{"$nulls":3},3,null,"Rød Drage","Hvid Drage","Grøn Drage",0,"Grøn"]
[19,{"$nulls":3},1,null,"Rød Drage","Hvid Drage","Grøn Drage",0,"Grøn"]
[20,{"$nulls":3},2,null,"Rød Drage","Hvid Drage","Grøn Drage",0,"Grøn"]
[21,{"$nulls":3},3,null,"Rød Drage","Hvid Drage","Grøn Drage",0,"Grøn"]
[22,{"$nulls":3},1,null,"Rød Drage","Hvid Drage","Grøn Drage",0,"Grøn"]
[23,{"$nulls":3},2,null,"Rød Drage","Hvid Drage","Grøn Drage",0,"Grøn"]
[24,{"$nulls":3},3,null,"Rød Drage","Hvid Drage","Grøn Drage",0,"Grøn"]
[25,{"$nulls":3},1,null,"Rød Drage","Hvid Drage","Grøn Drage",0,"Grøn"]
[26,{"$nulls":3},2,null,"Rød Drage","Hvid Drage","Grøn Drage",0,"Grøn"]
[27,{"$nulls":3},3,null,"Rød Drage","Hvid Drage","Grøn Drage",0,"Grøn"]
[28,{"$nulls":3},1,null,"Rød Drage","Hvid Drage","Grøn Drage",0,"Grøn"]
[29,{"$nulls":3},2,null,"Rød Drage","Hvid Drage","Grøn Drage",0,"Grøn"]
[30,{"$nulls":3},3,null,"Rød Drage","Hvid Drage","Grøn Drage",0,"Grøn"]
[31,{"$nulls":3},1,null,"Rød Drage","Hvid Drage","Grøn Drage",0,"Grøn"]
[32,{"$nulls":3},2,null,"Rød Drage","Hvid Drage","Grøn Drage",0,"Grøn"]
[33,{"$nulls":3},3,null,"Rød Drage","Hvid Drage","Grøn Drage",0,"Grøn"]
[34,{"$nulls":3},1,null,"Rød Drage","Hvid Drage","Grøn Drage",0,"Grøn"]
[35,{"$nulls":3},2,null,"Rød Drage","Hvid Drage","Grøn Drage",0,"Grøn"]
[36,{"$nulls":3},3,null,"Rød Drage","Hvid Drage","Grøn Drage",0,"Grøn"]
[37,{"$nulls":3},1,null,"Rød Drage","Hvid Drage","Grøn Drage",0,"Grøn"]
[38,{"$nulls":3},2,null,"Rød Drage","Hvid Drage","Grøn Drage",0,"Grøn"]
[39,{"$nulls":3},3,null,"Rød Drage","Hvid Drage","Grøn Drage",0,"Grøn"]
[40,{"$nulls":3},1,null,"Rød Drage","Hvid Drage","Grøn Drage",0,"Grøn"]
[41,{"$nulls":3},2,null,"Rød Drage","Hvid Drage","Grøn Drage",0,"Grøn"]
[42,{"$nulls":3},3,null,"Rød Drage","Hvid Drage","Grøn Drage",0,"Grøn"]
[43,{"$nulls":3},1,null,"Rød Drage","Hvid Drage","Grøn Drage",0,"Grøn"]
[44,{"$nulls":3},2,null,"Rød Drage","Hvid Drage","Grøn Drage",0,"Grøn"]
[45,{"$nulls":3},3,null,"Rød Drage","Hvid Drage","Grøn Drage",0,"Grøn"]
[46,{"$nulls":3},1,null,"Rød Drage","Hvid Drage","Grøn Drage",0,"Grøn"]
[47,{"$nulls":3},2,null,"Rød Drage","Hvid Drage","Grøn Drage",0,"Grøn"]
[48,{"$nulls":3},3,null,"Rød Drage","Hvid Drage","Grøn Drage",0,"Grøn"]